bitfinex-derivatives/quotes_ETHF0:USTF0_20220106
["timestamp","ask_amount","ask_price","bid_price","bid_amount"]
[1641476930409,0.74347116,3390.8,3390.0,14.21431304]
[1641476930613,2.74826116,3390.9,3390.7,1.47408485]
[1641476930810,2.74826116,3390.9,3390.8,0.153218]
[1641476931013,3.20824316,3390.9,3390.7,0.6579]
[1641476931612,2.74826116,3390.9,3390.8,0.153218]
[1641476932311,2.00479,3390.9,3390.8,0.153218]
[1641476934312,2.00479,3390.9,3390.8,1.62723332]
[1641476934510,2.00479,3390.9,3390.8,0.153218]
[1641476935310,2.00479,3391.5,3390.8,0.153218]
[1641476936411,2.00479,3391.5,3390.9,1.47399359]
[1641476937412,2.00479,3391.5,3390.7,0.6579]
[1641476937612,2.00479,3391.5,3390.9,1.47399359]
[1641476937814,2.00479,3391.5,3390.9,2.14499359]
[1641476938015,2.00479,3391.5,3390.9,4.14978359]
[1641476938414,5.467,3393.2,3391.4,1.4736808]
[1641476938619,97.6453,3392.8,3391.7,14.24]
[1641476938817,97.6453,3392.8,3391.7,13.469]
[1641476938818,0.74232158,3392.4,3391.7,13.469]
[1641476939117,0.74232158,3392.4,3391.8,0.384472]
[1641476939516,1.46835634,3393.2,3392.3,1.5]
[1641476939716,1.46835634,3393.2,3392.3,1.47288637]
[1641476939917,1.46835634,3393.2,3392.8,2.00479]
[1641476940117,1.46835634,3393.2,3392.8,15.51969]
[1641476940317,1.46835634,3393.2,3392.8,2.77969]
[1641476940719,2.00479,3393.6,3392.9,1.47309466]
[1641476940917,2.786444,3393.6,3393.0,0.384472]
[1641476941118,2.786444,3393.6,3392.9,1.47309466]
[1641476941522,2.00479,3393.6,3393.4,12.74]
[1641476941719,2.00479,3393.6,3393.5,0.153218]
[1641476941919,2.00479,3394.0,3393.5,0.601]
[1641476943021,0.384472,3393.9,3393.5,0.601]
[1641476943223,2.00479,3394.0,3393.5,0.601]
[1641476943421,2.00479,3394.0,3393.6,12.74]
[1641476943622,2.00479,3394.0,3393.9,12.74]
[1641476943822,0.23200794,3393.9,3393.8,1.47272368]
[1641476944623,0.23200794,3393.9,3393.8,1.62594168]
[1641476945122,0.781654,3394.2,3393.8,1.62594168]
[1641476945523,2.00479,3394.3,3393.8,1.62594168]
[1641476947323,2.00479,3394.3,3393.9,12.74]
[1641476947523,2.00479,3394.3,3394.2,1.47249165]
[1641476947724,2.12011255,3395.2,3394.2,2.55098165]
[1641476947924,2.389262,3394.8,3394.2,2.55098165]
[1641476948329,2.389262,3394.8,3394.2,2.16650965]
[1641476948726,2.786444,3394.8,3394.2,2.16650965]
[1641476949127,2.00479,3394.8,3394.2,2.16650965]
[1641476949330,0.63637125,3394.7,3394.2,2.16650965]
[1641476949529,1.24275352,3395.0,3394.6,1.5]
[1641476949728,1.24275352,3395.0,3394.8,1.5]
[1641476949729,1e-08,3395.0,3394.8,1.5]
[1641476949929,1e-08,3395.0,3394.9,4.162798]
[1641476950127,1e-08,3395.0,3394.9,17.592398]
[1641476950530,0.62011255,3395.2,3394.9,17.592398]
[1641476951131,0.99402371,3395.5,3394.9,4.852398]
[1641476951930,0.99402371,3395.5,3395.4,2.00479]
[1641476952133,0.99402371,3395.5,3395.4,15.28248]
[1641476952831,0.99402371,3395.6,3395.4,15.28248]
[1641476953230,2.11141677,3396.1,3395.4,15.28248]
[1641476954032,2.11141677,3396.1,3396.0,2.00479]
[1641476954232,0.62011255,3396.5,3396.0,2.888008]
[1641476954433,0.62011255,3396.5,3396.1,0.384472]
[1641476955335,0.62011255,3396.5,3396.1,13.124472]
[1641476955536,1.85842195,3396.9,3396.3,1.47165085]
[1641476955734,4.32172413,3397.2,3396.4,12.74]
[1641476955939,1.49065732,3396.9,3396.8,2.00479]
[1641476956136,1.49065732,3396.9,3396.8,2.158008]
[1641476957038,1.85842195,3397.2,3396.8,2.158008]
[1641476957238,1.85842195,3397.2,3396.8,2.729508]
[1641476957436,2.46330218,3397.4,3396.8,2.729508]
[1641476957636,5.36321195,3397.6,3396.8,1.77665731]
[1641476957836,0.384472,3397.4,3396.8,1.77665731]
[1641476958036,1.884472,3397.4,3396.8,1.77665731]
[1641476958236,2.281654,3397.4,3396.8,1.62343931]
[1641476958439,0.384472,3397.4,3396.8,14.74791131]
[1641476958641,3.50479,3397.6,3396.8,14.74791131]
[1641476958837,2.00479,3397.6,3396.8,14.74791131]
[1641476959037,0.397182,3397.5,3396.8,2.00791131]
[1641476959237,0.397182,3397.5,3396.8,1.62343931]
[1641476959437,0.397182,3397.5,3396.8,1.05193931]
[1641476959838,1.24204368,3397.2,3396.8,1.05193931]
[1641476960438,1.63922568,3397.2,3396.8,1.05193931]
[1641476961540,1.24204368,3397.2,3396.8,1.05193931]
[1641476961743,1.24204368,3397.2,3397.0,1.4713239]
[1641476961940,1.24204368,3397.2,3397.1,0.153218]
[1641476962340,1.24204368,3397.2,3397.1,15.86442501]
[1641476962541,1.85842195,3397.7,3397.1,15.86418912]
[1641476962741,1.85842195,3397.7,3397.3,12.74]
[1641476963040,1.85842195,3397.7,3397.4,1.08758867]
[1641476963241,5.0,3397.9,3397.2,0.384472]
[1641476963645,0.397182,3397.8,3397.2,0.384472]
[1641476964141,0.397182,3397.8,3397.7,2.00479]
[1641476964344,0.857164,3397.8,3397.7,2.00479]
[1641476964542,0.397182,3397.8,3397.7,2.00479]
[1641476964744,1.39057284,3397.8,3397.7,2.00479]
[1641476965044,0.99339084,3397.8,3397.2,0.384472]
[1641476965243,0.384472,3397.7,3397.2,0.384472]
[1641476965444,0.781654,3397.7,3397.2,0.384472]
[1641476965643,0.397182,3397.7,3397.2,0.384472]
[1641476966046,0.397182,3397.7,3397.6,2.00479]
[1641476966247,0.857164,3397.7,3397.6,2.00479]
[1641476966446,0.397182,3397.7,3397.6,2.00479]
[1641476967153,5.99339084,3397.9,3397.6,2.40189]
[1641476967345,5.0,3397.9,3397.7,0.153218]
[1641476967546,5.0,3397.9,3397.8,14.60790649]
[1641476968147,5.459982,3397.9,3397.8,3.47551449]
[1641476968346,5.459982,3397.9,3397.8,2.00479]
[1641476968750,5.857164,3397.9,3397.8,2.00479]
[1641476968948,5.857164,3397.9,3397.6,2.00479]
[1641476969147,0.459982,3397.8,3397.6,2.00479]
[1641476969356,0.397182,3397.7,3397.6,2.00479]
[1641476970048,5.0,3397.9,3397.6,3.62907866]
[1641476970648,0.459982,3397.8,3397.6,3.47586066]
[1641476970849,0.857164,3397.8,3397.6,3.47586066]
[1641476971049,0.857164,3397.8,3397.6,2.158008]
[1641476971351,0.857164,3397.8,3397.6,2.00479]
[1641476971748,5.0,3397.9,3397.6,2.00479]
[1641476971949,5.0,3397.9,3397.7,0.153218]
[1641476972350,5.0,3397.9,3397.7,0.5504]
[1641476972751,5.0,3397.9,3397.8,1.47097978]
[1641476974549,5.459982,3397.9,3397.8,1.47097978]
[1641476974750,5.0,3397.9,3397.8,1.47097978]
[1641476975151,5.0,3397.9,3397.8,1.62419778]
[1641476975552,5.459982,3397.9,3397.8,1.47097978]
[1641476975753,5.0,3397.9,3397.8,1.47097978]
[1641476975954,5.0,3397.9,3397.8,1.62419778]
[1641476976153,5.0,3397.9,3397.6,2.00479]
[1641476976354,1.5,3397.7,1382.4,0.16640947]
[1641476976557,1.5,3397.1,3395.2,30.6898]
[1641476976755,2.0521,3397.1,3394.9,1.5]
[1641476976956,1.5,3396.9,3394.9,1.5]
[1641476977157,1.5,3396.9,3394.6,65.1001]
[1641476977158,1.5,3396.9,3394.7,1.5]
[1641476977359,1.5,3396.9,3395.9,1.4716985]
[1641476977757,0.5521,3397.1,3395.9,14.2116985]
[1641476978156,2.00479,3396.7,3395.9,3.4764885]
[1641476978356,0.781654,3396.6,3396.0,0.384472]
[1641476978557,0.781654,3396.6,3395.9,3.4764885]
[1641476978957,0.781654,3396.6,3395.9,2.00479]
[1641476979161,1.5,3396.4,3395.9,2.00479]
[1641476979357,0.397182,3396.3,3395.9,2.00479]
[1641476979958,0.397182,3396.3,3395.6,2.00479]
[1641476980157,2.00479,3396.2,3395.6,2.00479]
[1641476980360,1.5,3396.0,3395.6,2.00479]
[1641476980558,0.384472,3395.9,3395.6,2.00479]
[1641476980758,0.397182,3396.1,3395.6,2.00479]
[1641476980957,0.397182,3396.1,3395.1,1.47206463]
[1641476981157,1.5,3395.8,3394.7,1.47223151]
[1641476982061,2.00479,3395.1,3394.7,1.47223151]
[1641476982266,0.397182,3395.0,3394.7,1.47223151]
[1641476982463,0.459982,3394.9,3394.2,2.00479]
[1641476982663,0.397182,3394.8,3394.2,2.00479]
[1641476982864,0.397182,3394.8,3394.2,2.389262]
[1641476983063,0.397182,3394.8,3394.3,0.397182]
[1641476983264,2.79089,3395.1,3394.3,1.86958476]
[1641476983265,2.00479,3395.1,3394.3,1.86958476]
[1641476983465,2.00479,3395.1,3394.4,12.74]
[1641476983667,2.00479,3395.4,3394.8,14.21217515]
[1641476983865,2.00479,3395.4,3394.8,1.47217515]
[1641476984070,0.397182,3395.3,3395.0,2.00479]
[1641476984271,0.459982,3395.2,3395.0,2.00479]
[1641476984467,0.397182,3395.2,3395.0,2.00479]
[1641476984671,2.00479,3395.8,3395.0,2.00479]
[1641476984872,2.00479,3395.8,3395.1,1.47205813]
[1641476985070,0.397182,3395.7,3395.2,0.384472]
[1641476985472,0.397182,3395.7,3395.1,1.47205813]
[1641476985672,0.397182,3395.7,3395.0,2.00479]
[1641476987374,1.5,3395.5,3395.0,2.00479]
[1641476987573,0.397182,3395.4,3395.0,2.00479]
[1641476992378,2.00479,3395.8,3395.1,0.397182]
[1641476992580,0.397182,3395.7,3395.1,1.197582]
[1641476993780,1.897182,3395.7,3395.1,0.397182]
[1641476993980,1.5,3395.4,3395.0,2.00479]
[1641476994179,0.397182,3395.3,3395.2,0.468252]
[1641476994383,0.857164,3395.3,3395.2,1.63445514]
[1641476994980,0.72212562,3395.4,3395.2,1.63445514]
[1641476995383,0.72212562,3395.4,3395.3,0.397182]
[1641476995682,2.00479,3395.8,3395.3,0.397182]
[1641476995683,0.96311008,3395.5,3395.4,12.74]
[1641476995884,1.20329582,3395.8,3395.4,14.637182]
[1641476996082,1.20329582,3395.8,3395.7,14.74479]
[1641476996284,1.49008626,3396.0,3395.7,15.59659]
[1641476996482,1.49008626,3396.0,3395.9,12.74]
[1641476996683,1.49008626,3396.0,3395.9,14.21159455]
[1641476996884,1.49008626,3396.0,3395.9,15.71159455]
[1641476997083,1.49008626,3396.0,3395.9,16.09606655]
[1641476997483,0.47351365,3396.9,3395.9,16.09606655]
[1641476997682,0.47351365,3396.9,3396.3,12.74]
[1641476997882,0.47351365,3396.9,3396.4,13.137182]
[1641476998084,0.47351365,3396.9,3396.4,1.056582]
[1641476998283,0.47351365,3396.9,3396.7,2.00479]
[1641476998485,1.85842195,3397.1,3396.8,0.397182]
[1641476998885,0.22942709,3397.0,3396.8,0.397182]
[1641476999086,0.22942709,3397.0,3396.9,0.384472]
[1641477000486,0.22942709,3397.7,3396.9,0.852724]
[1641477000687,0.22942709,3397.7,3397.0,0.397182]
[1641477001488,1.5,3397.9,3397.1,0.72067997]
[1641477001688,0.397182,3397.6,3397.1,0.72067997]
[1641477001890,1.897182,3397.6,3397.1,0.72067997]
[1641477002289,1.897182,3397.6,3397.1,1.10515197]
[1641477002689,0.3026593,3397.5,3397.1,0.384472]
[1641477002888,4.00958,3397.8,3397.7,0.3001587]
[1641477003091,9.969562,3397.8,3396.8,2.72546997]
[1641477003288,1.5,3397.3,3396.8,0.72067997]
[1641477003489,2.135,3397.3,3396.8,0.72067997]
[1641477003689,0.635,3397.3,3396.8,0.72067997]
[1641477004289,2.00479,3397.2,3396.8,1.11786197]
[1641477004492,2.00479,3397.2,3396.8,0.397182]
[1641477004690,2.00479,3397.2,3396.7,2.389262]
[1641477004890,2.00479,3397.2,3396.7,2.00479]
[1641477005290,1.5,3397.0,3396.6,0.72067997]
[1641477005490,3.50479,3397.2,3396.6,0.72067997]
[1641477005891,1.5,3397.0,3396.6,0.72067997]
[1641477006092,1.5,3396.8,3396.6,0.72067997]
[1641477006292,2.464772,3396.7,3396.6,0.72067997]
[1641477006590,2.00479,3396.7,3396.6,0.72067997]
[1641477006791,2.00479,3396.7,3396.4,0.72067997]
[1641477006992,0.459982,3396.6,3396.4,0.72067997]
[1641477008092,0.153218,3396.6,3396.4,0.72067997]
[1641477008392,1.653218,3396.6,3396.3,0.72067997]
[1641477008593,0.153218,3396.6,3396.3,0.72067997]
[1641477009595,0.153218,3396.6,3396.0,1.72067997]
[1641477009794,1.5,3396.4,3396.0,1.72067997]
[1641477009996,2.2155,3396.4,3395.5,1.20468106]
[1641477010193,2.00479,3396.0,3395.5,1.20468106]
[1641477010998,1.5,3395.7,3395.0,1.87120317]
[1641477011195,0.7736,3395.7,3395.0,1.87120317]
[1641477011997,0.7736,3395.7,3395.5,0.96679553]
[1641477012198,0.153218,3395.6,3395.5,0.96679553]
[1641477013000,2.00479,3396.0,3395.5,0.96679553]
[1641477013399,1.426818,3395.9,3395.3,0.073182]
[1641477013600,5.309516,3395.9,3395.3,0.073182]
[1641477014002,1.499918,3395.7,3395.3,8.2e-05]
[1641477014200,4.0,3395.4,3395.2,0.96679553]
[1641477014403,1.499918,3395.3,3394.4,1.87120317]
[1641477014600,1.499918,3394.8,3394.4,1.87120317]
[1641477014803,6.144618,3394.8,3394.4,1.87120317]
[1641477015807,2.144618,3394.8,3394.4,1.87120317]
[1641477016003,4.0,3394.7,3394.4,3.17e-06]
[1641477016204,2.00479,3394.5,3393.8,2.00479]
[1641477016804,1.499918,3394.3,3393.4,4.86993948]
[1641477017006,1.499918,3394.1,3393.4,4.86993948]
[1641477017203,0.7647,3394.1,3393.4,4.86993948]
[1641477017606,4.0,3394.0,3393.4,2.47266705]
[1641477017806,7.956449,3394.0,3393.2,2.47266705]
[1641477018004,2.098018,3394.0,3393.2,2.47266705]
[1641477018305,2.00479,3393.3,3393.2,2.47266705]
[1641477018505,2.00479,3393.3,3393.2,2.93264905]
[1641477018906,2.00479,3393.3,3393.2,2.47266705]
[1641477019307,2.00479,3393.3,3393.2,0.459982]
[1641477019505,2.00479,3393.3,3393.1,0.397182]
[1641477020110,2.00479,3393.3,3392.6,1.47315108]
[1641477020307,2.00479,3393.3,3392.5,4.47745705]
[1641477020508,2.00479,3393.3,3393.1,1.45311933]
[1641477020706,0.00636318,3393.3,3393.1,1.45311933]
[1641477021110,0.00636318,3393.3,3393.2,0.459982]
[1641477021308,0.00636318,3393.3,3393.2,0.857164]
[1641477021707,31.6354,3394.2,3393.2,0.857164]
[1641477022109,1.24562086,3394.8,3393.2,14.8082658]
[1641477022307,2.00479,3394.6,3393.8,2.00479]
[1641477022509,2.00479,3394.6,3393.8,2.64469]
[1641477023309,2.00479,3394.6,3393.9,1.5955738]
[1641477023714,2.00479,3394.6,3393.9,1.2111018]
[1641477023917,2.00479,3394.6,3394.0,0.397182]
[1641477024717,2.00479,3394.6,3394.0,0.86548362]
[1641477025020,2.00479,3394.6,3394.0,2.36548362]
[1641477025217,2.00479,3395.0,3394.0,2.33801213]
[1641477025618,2.00479,3395.0,3394.3,1.5]
[1641477025818,2.00479,3395.0,3394.4,0.781654]
[1641477026018,0.99630353,3395.2,3394.4,0.781654]
[1641477026218,0.99630353,3395.2,3394.7,2.00479]
[1641477026418,0.99630353,3395.2,3394.8,0.397182]
[1641477027318,2.45609,3395.4,3394.8,0.397182]
[1641477028319,2.45609,3395.4,3394.9,0.46830162]
[1641477029520,2.45609,3395.4,3394.8,0.86548362]
[1641477029721,0.99630353,3395.2,3394.8,2.07658542]
[1641477029920,0.99630353,3395.2,3394.9,14.24]
[1641477030124,2.00479,3395.4,3395.1,2.9720668]
[1641477030322,1.24562086,3395.5,3395.3,1.47175915]
[1641477030722,1.24562086,3395.5,3395.4,0.397182]
[1641477030925,2.74036589,3395.8,3395.4,1.020082]
[1641477031123,0.99881694,3395.6,3395.4,1.020082]
[1641477031326,0.99881694,3395.6,3395.4,2.49201012]
[1641477031533,0.99881694,3395.6,3395.5,0.459982]
[1641477031826,1.86812157,3396.3,3395.6,13.137182]
[1641477032024,1.86812157,3396.3,3396.0,1.5]
[1641477032224,1.86812157,3396.3,3396.2,4.00958]
[1641477032426,0.4515,3397.3,3396.2,4.87508]
[1641477032628,0.4515,3397.3,3396.2,6.3465836]
[1641477034227,0.4515,3397.3,3396.7,2.00479]
[1641477034428,0.4515,3397.3,3396.7,2.786444]
[1641477035231,2.00479,3397.4,3396.7,2.786444]
[1641477035429,2.00479,3397.4,3396.8,12.74]
[1641477035631,2.00479,3397.4,3396.9,0.397182]
[1641477035832,2.00479,3397.4,3396.9,1.262182]
[1641477036231,2.00479,3397.8,3396.9,1.262182]
[1641477038333,2.00479,3397.8,3397.3,14.24]
[1641477038533,0.02184874,3398.0,3397.4,0.781654]
[1641477039233,0.02184874,3398.0,3397.8,1.5]
[1641477039435,0.02184874,3398.0,3397.9,2.32796853]
[1641477039833,0.02184874,3398.0,3397.9,15.06796853]
[1641477040033,0.01984874,3398.0,3397.9,15.06796853]
[1641477040233,0.01984874,3398.0,3397.9,19.07754853]
[1641477041533,0.01984874,3398.0,3397.9,20.57754853]
[1641477041733,0.01984874,3398.0,3397.9,19.106744]
[1641477042033,0.01984874,3398.0,3397.9,20.57734305]
[1641477045141,0.01984874,3398.0,3397.9,19.07734305]
[1641477045342,0.01984874,3398.0,3397.9,6.33734305]
[1641477045744,5.0,3398.7,3397.9,6.33734305]
[1641477046343,5.0,3398.7,3398.6,2.00479]
[1641477046543,5.0,3398.7,3398.6,16.637426]
[1641477046743,5.0,3398.7,3398.6,3.512954]
[1641477047744,5.0,3398.7,3398.6,2.65579]
[1641477047945,5.0,3398.7,3398.6,2.00479]
[1641477050446,5.0,3398.7,3398.6,2.464772]
[1641477051549,5.0,3398.7,3398.6,2.00479]
[1641477052153,5.0,3398.7,3397.5,1.47059905]
[1641477052354,7.67409,3398.7,3398.0,0.72102042]
[1641477052854,7.67409,3398.7,3398.1,0.781654]
[1641477053055,5.6693,3398.7,3398.1,0.781654]
[1641477053457,5.6693,3398.7,3398.1,2.25238715]
[1641477053858,5.6693,3398.7,3398.1,0.781654]
[1641477054255,5.0,3398.7,3398.1,0.781654]
[1641477055060,5.0,3398.7,3398.1,0.384472]
[1641477055267,5.0,3398.7,3397.9,2.00479]
[1641477057465,5.0,3398.7,3398.0,0.397182]
[1641477058266,5.0,3398.7,3397.9,2.00479]
[1641477059264,5.0,3398.7,3398.0,0.384472]
[1641477059664,1.24025114,3398.5,3398.3,0.72102042]
[1641477061365,1.57102044,3398.6,3398.4,0.72102042]
[1641477062164,1.24025114,3398.5,3398.3,0.72102042]
[1641477063368,5.0,3398.7,3397.9,2.00479]
[1641477063565,5.0,3398.7,3398.0,0.384472]
[1641477064467,5.0,3398.7,3397.9,2.00479]
[1641477066270,5.0,3398.7,3398.0,0.384472]
[1641477066668,6.499918,3398.7,3397.9,2.00479]
[1641477066868,3.770046,3398.6,3397.9,2.00479]
[1641477067670,5.269964,3398.6,3397.9,2.00479]
[1641477067970,1.499918,3398.3,3397.1,1.47117887]
[1641477068170,1.499918,3398.3,3396.6,1.47138235]
[1641477068470,2.00479,3397.3,3396.6,1.47138235]
[1641477068873,1.528077,3397.2,3396.1,0.72102042]
[1641477069073,1.499918,3396.9,3396.1,0.72102042]
[1641477069272,1.528077,3397.2,3396.1,0.72102042]
[1641477069474,3.822025,3396.8,3396.1,0.72102042]
[1641477069673,0.021658,3397.1,3396.1,0.72102042]
[1641477070073,3.830694,3396.7,3396.1,0.72102042]
[1641477070273,0.015156,3397.1,3396.2,0.781654]
[1641477070474,0.015156,3397.1,3396.5,2.00479]
[1641477070873,3.822027,3397.2,3396.5,2.00479]
[1641477071274,0.015156,3397.0,3396.2,2.40013406]
[1641477071477,3.81986,3397.2,3396.2,2.40013406]
[1641477071675,3.81986,3397.2,3396.2,2.01566206]
[1641477071973,9.315445,3397.2,3396.2,0.5441]
[1641477072179,1.499918,3396.8,3395.4,0.72102042]
[1641477072381,2.00479,3395.8,3395.4,0.72102042]
[1641477072781,2.00479,3395.8,3395.4,2.19293988]
[1641477072980,2.00479,3395.8,3395.5,0.397182]
[1641477073181,2.00479,3395.8,3395.6,0.459982]
[1641477073582,2.00479,3395.8,3395.6,0.857164]
[1641477073780,2.00479,3396.2,3395.6,0.857164]
[1641477073982,2.00479,3396.2,3395.4,2.19293988]
[1641477074180,2.00479,3396.2,3395.5,0.397182]
[1641477074782,2.00479,3396.2,3395.0,3.47687413]
[1641477075183,3.878362,3396.1,3395.0,3.47687413]
[1641477075380,2.00479,3396.2,3395.0,4.19789455]
[1641477075580,3.891371,3396.1,3395.0,4.19789455]
[1641477076485,2.00479,3395.7,3395.0,3.47687413]
[1641477076684,2.00479,3395.7,3395.1,0.781654]
[1641477079988,2.00479,3395.7,3395.2,12.74]
[1641477080188,2.00479,3395.7,3395.3,0.397182]
[1641477081290,2.00479,3395.7,3395.3,13.137182]
[1641477082691,1.499918,3396.6,3395.5,1.47188913]
[1641477082893,1.499918,3396.6,3395.5,14.21188913]
[1641477084194,34.2414,3396.7,3395.5,14.21188913]
[1641477084391,3.504708,3396.6,3395.8,2.00479]
[1641477084995,3.504708,3396.6,3395.9,0.781654]
[1641477085595,2.00479,3396.6,3395.9,1.556954]
[1641477085794,3.504708,3396.6,3395.9,1.556954]
[1641477085993,2.00479,3396.6,3395.9,1.556954]
[1641477087995,1.00479,3396.6,3395.9,1.556954]
[1641477089398,5.467,3397.6,3396.5,1.47138235]
[1641477089598,5.467,3397.6,3397.1,1.47120051]
[1641477089796,5.467,3397.6,3397.2,0.781654]
[1641477089998,0.447,3397.8,3397.2,0.781654]
[1641477090196,0.447,3397.8,3397.1,2.11340051]
[1641477090397,0.447,3397.8,3397.1,0.6422]
[1641477090597,0.447,3397.8,3397.1,2.64699]
[1641477091600,0.447,3397.8,3397.1,3.044172]
[1641477092101,0.447,3397.8,3397.1,3.428644]
[1641477092899,0.447,3397.8,3397.1,2.64699]
[1641477093101,3.504708,3397.9,3397.8,0.553]
[1641477093500,3.945208,3397.9,3396.6,0.8868]
[1641477093700,1.499918,3397.5,3396.6,0.8868]
[1641477094201,5.317603,3397.8,3396.6,0.8868]
[1641477094603,2.00479,3397.2,3396.6,0.8868]
[1641477094803,2.44529,3397.9,3396.7,0.781654]
[1641477095200,2.44529,3397.9,3396.8,1.47133256]
[1641477095603,2.44529,3397.9,3396.7,0.384472]
[1641477095801,2.44529,3397.9,3396.8,1.47132606]
[1641477096001,2.44529,3397.9,3396.7,0.384472]
[1641477096501,2.44529,3397.9,3396.8,2.00479]
[1641477098002,1.44529,3397.9,3396.8,2.00479]
[1641477100905,4.0,3397.8,3396.8,2.00479]
[1641477102005,1.44529,3397.9,3396.8,2.00479]
[1641477102605,5.499918,3397.7,3396.8,2.00479]
[1641477103005,1.499918,3397.7,3396.8,2.00479]
[1641477103604,1.44529,3397.9,3396.8,2.00479]
[1641477104205,5.313271,3397.8,3396.8,2.00479]
[1641477104408,3.813353,3397.8,3396.8,2.00479]
[1641477104607,2.00479,3397.3,3396.8,2.00479]
[1641477104809,2.00479,3397.3,3396.6,0.8868]
[1641477105407,2.00479,3397.3,3396.7,0.384472]
[1641477106208,2.00479,3397.3,3396.7,0.781654]
[1641477107210,2.00479,3397.3,3396.7,0.397182]
[1641477107413,2.00479,3397.3,3396.6,0.8868]
[1641477107610,1.499918,3397.1,3395.9,2.42820332]
[1641477107811,2.67969,3397.3,3395.9,0.80085209]
[1641477107812,4.0,3396.7,3395.9,0.80085209]
[1641477108012,1.499918,3396.9,3395.9,0.80085209]
[1641477108212,14.239918,3396.9,3395.9,0.80085209]
[1641477108512,2.00479,3396.1,3395.9,0.80085209]
[1641477108714,2.00479,3396.1,3395.8,0.80085209]
[1641477109614,2.00479,3396.1,3395.7,0.397182]
[1641477110514,2.00479,3396.1,3395.6,0.384472]
[1641477110913,2.00479,3396.1,3395.4,0.46802691]
[1641477111117,4.0,3395.9,3394.9,3.20060511]
[1641477111314,4.0,3395.9,3394.9,2.00479]
[1641477111514,0.015178,3395.8,3394.9,2.00479]
[1641477111714,1.47251333,3395.7,3394.9,2.00279]
[1641477111914,1.47251333,3395.7,3394.8,1.19581511]
[1641477112115,0.006506,3395.6,3394.8,1.19581511]
[1641477112520,1.499918,3395.3,3394.7,0.62403588]
[1641477112717,2.00479,3394.9,3394.6,1.43460617]
[1641477113118,0.010846,3394.8,3394.6,1.43460617]
[1641477113921,0.010846,3394.8,3394.4,0.397182]
[1641477114919,0.010846,3394.8,3394.4,0.781654]
[1641477115620,2.00479,3394.9,3394.4,0.781654]
[1641477116220,3.919564,3394.8,3394.4,0.781654]
[1641477116923,2.00479,3394.9,3394.4,0.781654]
[1641477117219,2.00479,3394.9,3394.4,1.440854]
[1641477118222,2.00479,3395.0,3394.4,1.440854]
[1641477119226,2.00479,3395.0,3394.5,0.45352708]
[1641477119425,2.00479,3395.0,3394.6,0.397182]
[1641477120625,2.00479,3395.4,3394.6,0.397182]
[1641477123227,2.00479,3395.4,3394.8,0.96058195]
[1641477124530,2.00479,3395.4,3394.8,0.397182]
[1641477125431,2.00479,3395.4,3394.9,0.45008862]
[1641477126031,2.00479,3395.4,3394.9,0.84727062]
[1641477126431,2.00479,3395.4,3394.9,0.397182]
[1641477126631,2.00479,3395.4,3394.6,0.96058195]
[1641477126833,2.00479,3395.4,3394.7,0.397182]
[1641477128639,2.00479,3395.4,3394.9,0.72137885]
[1641477129846,14.74479,3395.4,3394.9,7.885e-05]
[1641477130044,2.00479,3395.4,3394.9,7.885e-05]
[1641477130646,2.00479,3395.0,3394.9,7.885e-05]
[1641477130844,2.00479,3395.0,3394.6,0.96058195]
[1641477132046,2.00479,3395.0,3394.5,1.74223595]
[1641477132245,2.00479,3395.0,3394.5,1.35776395]
[1641477133047,2.00479,3395.0,3394.7,0.96058195]
[1641477133247,0.08016561,3395.0,3394.8,0.459982]
[1641477133444,0.08016561,3395.0,3394.7,1.79588195]
[1641477134146,0.08016561,3395.0,3394.8,0.857164]
[1641477134546,0.08016561,3395.0,3394.7,2.23931234]
[1641477134947,0.08016561,3395.0,3394.8,0.459982]
[1641477135147,0.08016561,3395.0,3394.9,0.44343039]
[1641477135752,0.08016561,3395.0,3394.9,0.90341239]
[1641477135949,0.08016561,3395.0,3394.7,0.96058195]
[1641477136152,0.08016561,3395.0,3394.6,0.397182]
[1641477137151,0.08016561,3395.0,3394.7,0.42690909]
[1641477138052,0.08016561,3395.0,3394.7,1.21380909]
[1641477138451,0.08016561,3395.0,3394.8,0.397182]
[1641477138853,0.08016561,3395.0,3394.8,0.857164]
[1641477139254,0.08016561,3395.0,3394.8,1.28407309]
[1641477139455,2.00479,3395.4,3394.8,2.78407309]
[1641477139652,1.47234205,3396.1,3394.8,2.78407309]
[1641477139852,67.21387546,3396.7,3394.8,4.25614855]
[1641477140054,65.7418,3396.7,3395.0,1.5]
[1641477140454,65.7418,3396.7,3395.2,14.24]
[1641477140654,2.71347209,3397.2,3396.2,4.00958]
[1641477140655,1.2414638,3397.2,3396.2,4.00958]
[1641477140957,1.2414638,3397.2,3396.6,12.74]
[1641477141153,1.2414638,3397.2,3396.7,0.781654]
[1641477142353,1.48975656,3397.5,3396.7,0.781654]
[1641477142755,2.00479,3397.8,3397.2,2.00479]
[1641477142954,2.00479,3397.8,3397.2,2.56889]
[1641477143559,2.00479,3397.8,3397.2,2.966072]
[1641477145659,2.00479,3397.8,3397.2,2.56889]
[1641477145856,2.00479,3397.8,3397.2,2.966072]
[1641477147065,1.00479,3397.8,3397.2,2.966072]
[1641477148461,1.00479,3397.8,3397.2,2.56889]
[1641477148664,1.00479,3397.8,3396.8,2.00479]
[1641477149661,3.804673,3397.7,3396.8,2.00479]
[1641477150063,1.00479,3397.8,3397.1,1.47117238]
[1641477150264,1.499918,3397.2,3395.3,32.69942744]
[1641477150463,1.499918,3396.8,3395.3,1.20072744]
[1641477150662,0.6256,3396.9,3395.9,2.00479]
[1641477151269,2.09749779,3396.9,3396.2,0.781654]
[1641477151665,0.6256,3396.9,3396.2,0.781654]
[1641477151865,2.00479,3397.0,3396.3,1.5]
[1641477152064,6.966918,3398.1,3396.9,1.0]
[1641477152065,1.47152309,3397.8,3396.9,1.0]